fUST/lending_fUST_20250624
["ID","MTS","AMOUNT","RATE_DAILY","PERIOD"]
[367190916,1750697440434,-460.0,0.00020433,2]
[367190918,1750697440444,-460.0,0.00020433,2]
[367190920,1750697440454,-460.0,0.00020433,2]
[367190922,1750697440464,-460.0,0.00020433,2]
[367190923,1750697440475,-460.0,0.00020433,2]
[367190924,1750697440485,-460.0,0.00020433,2]
[367190926,1750697440495,-182.70497341,0.00020433,2]
[367190927,1750697440506,-460.0,0.00020433,2]
[367190929,1750697440515,-460.0,0.00020433,2]
[367190931,1750697440526,-460.0,0.00020433,2]
[367190932,1750697440536,-3331.18,0.00020433,2]
[367190934,1750697440546,-460.0,0.00020433,2]
[367190936,1750697440555,-597.17,0.00020433,2]
[367190937,1750697440565,-1808.96,0.00020433,2]
[367190939,1750697440575,-522.83,0.00020433,2]
[367190941,1750697440585,-993.39,0.00020433,2]
[367190943,1750697440599,-460.0,0.00020433,2]
[367190944,1750697440608,-460.0,0.00020433,2]
[367190946,1750697440618,-460.0,0.00020433,2]
[367190948,1750697440628,-228.3356228,0.00020433,2]
[367190949,1750697440638,-460.0,0.00020433,2]
[367190951,1750697440648,-460.0,0.00020433,2]
[367190953,1750697440658,-1938.6,0.00020433,2]
[367190955,1750697440668,-460.0,0.00020433,2]
[367190956,1750697440679,-4171.75,0.00020433,2]
[367190958,1750697440690,-460.0,0.00020433,2]
[367190960,1750697440701,-798.39,0.00020433,2]
[367190961,1750697440712,-662.12,0.00020433,2]
[367190963,1750697440723,-644.67,0.00020433,2]
[367190965,1750697440733,-1922.25,0.00020433,2]
[367190967,1750697440742,-500.56,0.00020433,2]
[367190968,1750697440752,-460.0,0.00020433,2]
[367190970,1750697440762,-1338.64,0.00020433,2]
[367190972,1750697440771,-2510.12,0.00020433,2]
[367190973,1750697440781,-460.0,0.00020433,2]
[367190975,1750697440790,-1996.8,0.00020433,2]
[367190977,1750697440800,-460.0,0.00020433,2]
[367190979,1750697440811,-4607.43,0.00020433,2]
[367190981,1750697440821,-945.39,0.00020433,2]
[367190982,1750697440831,-460.0,0.00020433,2]
[367190984,1750697440841,-472.30790771,0.00020433,2]
[367190986,1750697440856,-607.26,0.00020433,2]
[367190988,1750697440866,-460.0,0.00020433,2]
[367190989,1750697440875,-3803.99525786,0.00020446,2]
[367190990,1750697440885,-1921.16,0.00020525,3]
[367190991,1750697440895,-480.29,0.00020525,3]
[367190992,1750697440905,-2338.51,0.00020535,3]
[367190993,1750697440914,-960.58,0.00020535,3]
[367190994,1750697440924,-768.34,0.00020545,2]
[367190995,1750697440935,-460.0,0.00020545,2]
[367190996,1750697440945,-462.01,0.00020545,2]
[367190997,1750697440955,-460.0,0.00020545,2]
[367190998,1750697440965,-282.3695488,0.00020545,2]
[367190999,1750697440975,-1080.4,0.00020545,2]
[367191000,1750697440985,-460.0,0.00020545,2]
[367191001,1750697440995,-460.0,0.00020545,2]
[367191002,1750697441004,-523.6,0.00020545,2]
[367191003,1750697441014,-460.0,0.00020545,2]
[367191004,1750697441023,-460.0,0.00020545,2]
[367191005,1750697441033,-460.0,0.00020545,2]
[367191006,1750697441043,-666.99,0.00020545,2]
[367191007,1750697441053,-460.0,0.00020545,2]
[367191008,1750697441063,-460.0,0.00020545,2]
[367191009,1750697441073,-460.0,0.00020545,2]
[367191010,1750697441083,-460.0,0.00020545,2]
[367191011,1750697441093,-460.0,0.00020545,2]
[367191012,1750697441102,-649.66,0.00020545,2]
[367191013,1750697441113,-460.0,0.00020545,2]
[367191014,1750697441122,-577.48,0.00020545,2]
[367191015,1750697441132,-460.0,0.00020545,2]
[367191016,1750697441141,-460.0,0.00020545,2]
[367191017,1750697441151,-460.0,0.00020545,2]
[367191018,1750697441161,-460.0,0.00020545,2]
[367191019,1750697441171,-460.0,0.00020545,2]
[367191020,1750697441180,-460.0,0.00020545,2]
[367191021,1750697441192,-834.68,0.00020545,2]
[367191022,1750697441202,-460.0,0.00020545,2]
[367191023,1750697441212,-460.0,0.00020545,2]
[367191024,1750697441222,-803.94,0.00020545,2]
[367191025,1750697441232,-941.33,0.00020545,2]
[367191026,1750697441242,-460.0,0.00020545,2]
[367191027,1750697441251,-460.0,0.00020545,2]
[367191028,1750697441260,-460.0,0.00020545,2]
[367191029,1750697441272,-460.0,0.00020545,2]
[367191030,1750697441282,-463.65,0.00020545,2]
[367191031,1750697441291,-460.0,0.00020545,2]
[367191032,1750697441300,-460.0,0.00020545,2]
[367191033,1750697441310,-734.18,0.00020545,2]
[367191034,1750697441320,-460.0,0.00020545,2]
[367191035,1750697441330,-500.0,0.00020545,2]
[367191036,1750697441340,-460.0,0.00020545,2]
[367191037,1750697441353,-460.0,0.00020545,2]
[367191038,1750697441364,-460.0,0.00020545,2]
[367191039,1750697441374,-632.86,0.00020545,2]
[367191040,1750697441387,-460.0,0.00020545,2]
[367191041,1750697441397,-460.0,0.00020545,2]
[367191042,1750697441407,-477.82623901,0.00020545,2]
[367191043,1750697441417,-553.086631,0.00020545,2]
[367191044,1750697441427,-460.0,0.00020545,2]
[367191045,1750697441436,-460.0,0.00020545,2]
[367191046,1750697441446,-783.14,0.00020545,2]
[367191047,1750697441456,-586.65,0.00020545,2]
[367191048,1750697441466,-460.0,0.00020545,2]
[367191049,1750697441476,-460.0,0.00020545,2]
[367191050,1750697441485,-214.17903174,0.00020545,2]
[367191051,1750697441495,-1907.71,0.00020545,2]
[367191052,1750697441504,-514.80969788,0.00020545,2]
[367191053,1750697441515,-460.0,0.00020545,2]
[367191054,1750697441524,-460.0,0.00020545,2]
[367191055,1750697441534,-691.12,0.00020545,2]
[367191056,1750697441543,-460.0,0.00020545,2]
[367191057,1750697441552,-460.0,0.00020545,2]
[367191058,1750697441561,-460.0,0.00020545,2]
[367191059,1750697441572,-460.0,0.00020545,2]
[367191060,1750697441581,-462.32,0.00020545,2]
[367191061,1750697441591,-460.0,0.00020545,2]
[367191062,1750697441603,-460.0,0.00020545,2]
[367191063,1750697441612,-323.48319142,0.00020545,2]
[367191064,1750697441622,-460.0,0.00020545,2]
[367191065,1750697441631,-895.18,0.00020545,2]
[367191066,1750697441641,-460.0,0.00020545,2]
[367191067,1750697441651,-500.0,0.00020545,2]
[367191068,1750697441660,-500.0,0.00020545,2]
[367191069,1750697441670,-500.0,0.00020545,2]
[367191070,1750697441679,-500.0,0.00020545,2]
[367191071,1750697441689,-500.0,0.00020545,2]
[367191072,1750697441698,-308.67873585,0.00020545,2]
[367191073,1750697441708,-500.0,0.00020545,2]
[367191074,1750697441717,-500.0,0.00020545,2]
[367191075,1750697441727,-500.0,0.00020545,2]
[367191076,1750697441736,-500.0,0.00020545,2]
[367191077,1750697441746,-500.0,0.00020545,2]
[367191078,1750697441755,-219.41147451,0.00020545,2]
[367191079,1750697441764,-500.0,0.00020545,2]
[367191080,1750697441773,-500.0,0.00020545,2]
[367191081,1750697441783,-500.0,0.00020545,2]
[367191082,1750697441793,-500.0,0.00020545,2]
[367191083,1750697441802,-371.22087339,0.00020545,2]
[367191084,1750697441811,-500.0,0.00020545,2]
[367191085,1750697441821,-500.0,0.00020545,2]
[367191086,1750697441830,-500.0,0.00020545,2]
[367191087,1750697441840,-500.0,0.00020545,2]
[367191088,1750697441852,-500.0,0.00020545,2]
[367191089,1750697441862,-500.0,0.00020545,2]
[367191090,1750697441872,-500.0,0.00020545,2]
[367191091,1750697441881,-500.0,0.00020545,2]
[367191092,1750697441890,-500.0,0.00020545,2]
[367191093,1750697441900,-500.0,0.00020545,2]
[367191094,1750697441909,-500.0,0.00020545,2]
[367191095,1750697441919,-481.69382542,0.00020545,2]
[367191096,1750697441928,-460.0,0.00020545,2]
[367191097,1750697441937,-460.0,0.00020545,2]
[367191098,1750697441947,-469.12819751,0.00020545,2]
[367191099,1750697441956,-707.13799302,0.00020545,2]
[367191100,1750697441965,-707.13799302,0.00020545,2]
[367191101,1750697441974,-707.13799302,0.00020545,2]
[367191102,1750697441983,-707.13799302,0.00020545,2]
[367191103,1750697441993,-707.13799302,0.00020545,2]
[367191104,1750697442002,-707.13799302,0.00020545,2]
[367191105,1750697442012,-707.13799302,0.00020545,2]
[367191106,1750697442022,-707.13799302,0.00020545,2]
[367191107,1750697442032,-707.13799302,0.00020545,2]
[367191108,1750697442041,-707.13799302,0.00020545,2]
[367191109,1750697442052,-707.13799302,0.00020545,2]
[367191110,1750697442061,-460.0,0.00020545,2]
[367191111,1750697442071,-460.0,0.00020545,2]
[367191112,1750697442081,-460.0,0.00020545,2]
[367191113,1750697442090,-503.32344317,0.00020545,2]
[367191114,1750697442102,-460.0,0.00020545,2]
[367191115,1750697442112,-460.0,0.00020545,2]
[367191116,1750697442122,-500.0,0.00020545,2]
[367191117,1750697442131,-677.91,0.00020545,2]
[367191118,1750697442141,-460.0,0.00020545,2]
[367191119,1750697442150,-460.0,0.00020545,2]
[367191120,1750697442160,-767.32,0.00020545,2]
[367191121,1750697442170,-460.0,0.00020545,2]
[367191122,1750697442180,-984.13,0.00020545,2]
[367191123,1750697442192,-801.12,0.00020545,2]
[367191124,1750697442202,-1131.78,0.00020545,2]
[367191125,1750697442212,-460.0,0.00020545,2]
[367191126,1750697442222,-2069.55,0.00020545,2]
[367191127,1750697442232,-460.0,0.00020545,2]
[367191128,1750697442241,-460.0,0.00020545,2]
[367191129,1750697442251,-460.0,0.00020545,2]
[367191130,1750697442260,-460.0,0.00020545,2]
[367191131,1750697442272,-460.0,0.00020545,2]
[367191132,1750697442282,-1331.56,0.00020545,2]
[367191133,1750697442292,-460.0,0.00020545,2]
[367191134,1750697442303,-574.96,0.00020545,2]
[367191135,1750697442312,-530.44,0.00020545,2]
[367191136,1750697442321,-460.0,0.00020545,2]
[367191137,1750697442331,-976.96,0.00020545,2]
[367191138,1750697442341,-2037.71,0.00020545,2]
[367191139,1750697442353,-460.0,0.00020545,2]
[367191140,1750697442363,-1166.86,0.00020545,2]
[367191141,1750697442373,-658.74,0.00020545,2]
[367191142,1750697442383,-460.0,0.00020545,2]
[367191143,1750697442393,-460.0,0.00020545,2]
[367191144,1750697442403,-645.9,0.00020545,2]
[367191145,1750697442413,-460.0,0.00020545,2]
[367191146,1750697442423,-533.83927758,0.00020545,2]
[367191147,1750697442432,-607.83,0.00020545,2]
[367191148,1750697442442,-460.0,0.00020545,2]
[367191149,1750697442452,-548.66,0.00020545,2]
[367191150,1750697442461,-1412.86522812,0.00020546,2]
[367191151,1750697442471,-500.0,0.00020546,2]
[367191152,1750697442480,-500.0,0.00020546,2]
[367191153,1750697442490,-500.0,0.00020546,2]
[367191154,1750697442500,-500.0,0.00020546,2]
[367191155,1750697442509,-984.08,0.00020546,2]
[367191156,1750697442518,-2304.0,0.00020546,2]
[367191157,1750697442528,-845.92,0.00020546,2]
[367191158,1750697442538,-773.26,0.00020546,2]
[367191159,1750697442548,-3459.6,0.00020546,2]
[367191160,1750697442557,-460.0,0.00020546,2]
[367191161,1750697442567,-460.0,0.00020546,2]
[367191162,1750697442576,-460.0,0.00020546,2]
[367191163,1750697442586,-573.77,0.00020546,2]
[367191165,1750697442600,-729.62654371,0.00020546,2]
[367191167,1750697442610,-460.0,0.00020546,2]
[367191169,1750697442620,-460.0,0.00020546,2]
[367191171,1750697442629,-460.0,0.00020546,2]
[367191173,1750697442639,-460.0,0.00020546,2]
[367191175,1750697442648,-460.0,0.00020546,2]
[367191177,1750697442659,-532.82,0.00020546,2]
[367191178,1750697442669,-460.0,0.00020546,2]
[367191180,1750697442679,-1283.0,0.00020546,2]
[367191181,1750697442689,-788.52,0.00020546,2]
[367191182,1750697442698,-500.0,0.00020546,2]
[367191183,1750697442708,-500.0,0.00020546,2]
[367191184,1750697442717,-500.0,0.00020546,2]
[367191186,1750697442727,-500.0,0.00020546,2]
[367191189,1750697442737,-500.0,0.00020546,2]
[367191190,1750697442747,-5163.31,0.00020546,2]
[367191192,1750697442757,-1680.77,0.00020546,2]
[367191194,1750697442767,-587.82,0.00020546,2]
[367191196,1750697442776,-12520.38,0.00020546,2]
[367191198,1750697442786,-460.0,0.00020546,2]
[367191201,1750697442795,-970.2,0.00020546,2]
[367191203,1750697442805,-1785.46,0.00020546,2]
[367191205,1750697442815,-4776.5,0.00020546,2]
[367191207,1750697442827,-1188.31,0.00020546,2]
[367191209,1750697442837,-1838.21,0.00020546,2]
[367191225,1750697443077,-460.0,0.00020546,2]
[367191226,1750697443088,-460.0,0.00020546,2]
[367191227,1750697443101,-460.0,0.00020547,2]
[367191228,1750697443110,-614.46,0.00020547,2]
[367191229,1750697443120,-460.0,0.00020547,2]
[367191230,1750697443130,-460.0,0.00020547,2]
[367191231,1750697443140,-460.0,0.00020547,2]
[367191232,1750697443149,-460.0,0.00020547,2]
[367191233,1750697443158,-460.0,0.00020547,2]
[367191234,1750697443168,-460.0,0.00020547,2]
[367191235,1750697443177,-460.0,0.00020547,2]
[367191236,1750697443189,-460.0,0.00020547,2]
[367191237,1750697443200,-617.88,0.00020547,2]
[367191238,1750697443210,-1431.97,0.00020547,2]
[367191240,1750697443219,-460.0,0.00020547,2]
[367191242,1750697443231,-460.0,0.00020547,2]
[367191243,1750697443241,-460.0,0.00020547,2]
[367191245,1750697443251,-909.95,0.00020547,2]
[367191247,1750697443261,-460.0,0.00020547,2]
[367191249,1750697443272,-526.76,0.00020547,2]
[367191251,1750697443282,-460.42030339,0.00020547,2]
[367191253,1750697443292,-460.0,0.00020547,2]
[367191255,1750697443301,-780.77,0.00020547,2]
[367191257,1750697443311,-460.0,0.00020547,2]
[367191258,1750697443320,-460.0,0.00020547,2]
[367191259,1750697443330,-460.0,0.00020547,2]
[367191261,1750697443340,-460.0,0.00020547,2]
[367191263,1750697443353,-495.61,0.00020547,2]
[367191264,1750697443362,-460.0,0.00020547,2]
[367191265,1750697443371,-460.0,0.00020547,2]
[367191266,1750697443381,-460.0,0.00020547,2]
[367191267,1750697443391,-460.0,0.00020547,2]
[367191268,1750697443400,-460.0,0.00020547,2]
[367191269,1750697443410,-460.0,0.00020547,2]
[367191270,1750697443420,-460.0,0.00020547,2]
[367191271,1750697443430,-460.0,0.00020547,2]
[367191272,1750697443439,-401.40974133,0.00020547,2]
[367191273,1750697443449,-460.0,0.00020547,2]
[367191274,1750697443459,-460.0,0.00020547,2]
[367191275,1750697443470,-651.77,0.00020547,2]
[367191276,1750697443479,-585.51,0.00020547,2]
[367191277,1750697443489,-300.0,0.00020547,2]
[367191278,1750697443498,-460.0,0.00020547,2]
[367191279,1750697443508,-460.0,0.00020547,2]
[367191280,1750697443517,-460.0,0.00020547,2]
[367191281,1750697443527,-460.0,0.00020547,2]
[367191282,1750697443536,-460.0,0.00020547,2]
[367191283,1750697443546,-460.0,0.00020547,2]
[367191284,1750697443556,-460.0,0.00020547,2]
[367191285,1750697443566,-271.74069443,0.00020547,2]
[367191286,1750697443576,-460.0,0.00020547,2]
[367191287,1750697443585,-460.0,0.00020547,2]
[367191288,1750697443595,-460.0,0.00020547,2]
[367191289,1750697443610,-2845.44,0.00020547,2]
[367191290,1750697443619,-460.0,0.00020547,2]
[367191291,1750697443628,-460.0,0.00020547,2]
[367191292,1750697443639,-500.0,0.00020547,2]
[367191293,1750697443649,-806.82,0.00020547,2]
[367191294,1750697443660,-460.0,0.00020547,2]
[367191295,1750697443670,-662.46,0.00020547,2]
[367191296,1750697443680,-1029.25,0.00020547,2]
[367191297,1750697443690,-1895.61,0.00020547,2]
[367191298,1750697443700,-460.0,0.00020547,2]
[367191299,1750697443709,-460.0,0.00020547,2]
[367191300,1750697443719,-1073.31,0.00020547,2]
[367191301,1750697443728,-566.90037874,0.00020547,2]
[367191302,1750697443738,-1897.12,0.00020547,2]
[367191303,1750697443748,-169.56816334,0.00020547,2]
[367191304,1750697443758,-460.0,0.00020547,2]
[367191305,1750697443768,-460.0,0.00020547,2]
[367191306,1750697443778,-460.0,0.00020547,2]
[367191307,1750697443787,-460.0,0.00020547,2]
[367191308,1750697443798,-1134.25,0.00020547,2]
[367191309,1750697443807,-460.0,0.00020547,2]
[367191310,1750697443817,-363.03324262,0.00020547,2]
[367191311,1750697443828,-460.0,0.00020547,2]
[367191312,1750697443837,-460.0,0.00020547,2]
[367191313,1750697443849,-460.0,0.00020547,2]
[367191314,1750697443859,-460.0,0.00020547,2]
[367191315,1750697443868,-537.92555294,0.00020547,2]
[367191316,1750697443878,-460.0,0.00020547,2]
[367191317,1750697443887,-991.59,0.00020547,2]
[367191318,1750697443897,-460.0,0.00020547,2]
[367191319,1750697443907,-460.0,0.00020547,2]
[367191320,1750697443916,-460.0,0.00020547,2]
[367191321,1750697443926,-603.21947115,0.00020547,2]
[367191322,1750697443935,-588.15,0.00020547,2]
[367191323,1750697443946,-460.0,0.00020547,2]
[367191324,1750697443955,-460.0,0.00020547,2]
[367191325,1750697443967,-460.0,0.00020547,2]
[367191326,1750697443976,-460.0,0.00020547,2]
[367191327,1750697443986,-460.0,0.00020547,2]
[367191328,1750697443996,-460.0,0.00020547,2]
[367191329,1750697444006,-460.0,0.00020547,2]
[367191330,1750697444015,-460.0,0.00020547,2]
[367191331,1750697444024,-460.0,0.00020547,2]
[367191332,1750697444035,-460.0,0.00020547,2]
[367191333,1750697444044,-460.0,0.00020547,2]
[367191334,1750697444054,-460.0,0.00020547,2]
[367191335,1750697444065,-462.22815629,0.00020547,2]
[367191336,1750697444076,-460.0,0.00020547,2]
[367191337,1750697444087,-870.3,0.00020547,2]
[367191338,1750697444097,-392.15089377,0.00020547,2]
[367191339,1750697444107,-171.25863601,0.00020547,2]
[367191340,1750697444117,-510.67,0.00020547,2]
[367191341,1750697444126,-1318.26,0.00020547,2]
[367191342,1750697444137,-460.0,0.00020547,2]
[367191343,1750697444147,-460.0,0.00020547,2]
[367191344,1750697444158,-460.0,0.00020547,2]
[367191345,1750697444170,-500.0,0.00020547,7]
[367191346,1750697444180,-460.0,0.00020547,2]
[367191347,1750697444192,-460.0,0.00020547,2]
[367191348,1750697444204,-807.85,0.00020547,2]
[367191349,1750697444213,-460.0,0.00020547,2]
[367191350,1750697444222,-460.0,0.00020547,2]
[367191351,1750697444231,-152.48163787,0.00020547,2]
[367191352,1750697444242,-460.0,0.00020547,2]
[367191353,1750697444252,-523.74,0.00020547,2]
[367191354,1750697444261,-460.0,0.00020547,2]
[367191355,1750697444272,-460.0,0.00020547,2]
[367191356,1750697444281,-480.9,0.00020547,2]
[367191357,1750697444291,-460.0,0.00020547,2]
[367191358,1750697444300,-460.0,0.00020547,2]
[367191359,1750697444310,-460.0,0.00020547,2]
[367191360,1750697444319,-709.92,0.00020547,2]
[367191361,1750697444328,-460.0,0.00020547,2]
[367191362,1750697444337,-460.0,0.00020547,2]
[367191363,1750697444349,-460.0,0.00020547,2]
[367191364,1750697444359,-926.56,0.00020547,2]
[367191365,1750697444369,-460.0,0.00020547,2]
[367191366,1750697444378,-1047.54,0.00020547,2]
[367191367,1750697444388,-460.0,0.00020547,2]
[367191368,1750697444398,-460.0,0.00020547,2]
[367191369,1750697444407,-814.8,0.00020547,2]
[367191370,1750697444417,-5076.91,0.00020547,2]
[367191371,1750697444427,-294.76618974,0.00020547,2]
[367191372,1750697444436,-460.0,0.00020547,2]
[367191373,1750697444446,-460.0,0.00020547,2]
[367191374,1750697444456,-460.0,0.00020547,2]
[367191375,1750697444465,-460.0,0.00020547,2]
[367191376,1750697444475,-460.0,0.00020547,2]
[367191377,1750697444484,-639.64,0.00020547,2]
[367191378,1750697444494,-460.0,0.00020547,2]
[367191379,1750697444503,-460.0,0.00020547,2]
[367191380,1750697444512,-1458.11,0.00020547,2]
[367191381,1750697444522,-1180.24,0.00020547,2]
[367191382,1750697444531,-460.0,0.00020547,2]
[367191383,1750697444540,-721.42,0.00020547,2]
[367191384,1750697444549,-460.0,0.00020547,2]
[367191385,1750697444559,-3757.48,0.00020547,2]
[367191386,1750697444568,-460.0,0.00020547,2]
[367191387,1750697444578,-460.0,0.00020547,2]
[367191388,1750697444587,-460.0,0.00020547,2]
[367191389,1750697444598,-460.0,0.00020547,2]
[367191390,1750697444607,-799.52,0.00020547,2]
[367191391,1750697444617,-1092.87,0.00020547,2]
[367191392,1750697444627,-460.0,0.00020547,2]
[367191393,1750697444636,-460.0,0.00020547,2]
[367191394,1750697444646,-460.0,0.00020547,2]
[367191395,1750697444655,-460.0,0.00020547,2]
[367191396,1750697444664,-460.0,0.00020547,2]
[367191397,1750697444674,-863.84,0.00020547,2]
[367191398,1750697444683,-460.0,0.00020547,2]
[367191399,1750697444692,-460.0,0.00020547,2]
[367191400,1750697444702,-460.0,0.00020547,2]
[367191401,1750697444711,-460.0,0.00020547,2]
[367191402,1750697444720,-460.0,0.00020547,2]
[367191403,1750697444730,-1023.23,0.00020547,2]
[367191404,1750697444739,-815.28,0.00020547,2]
[367191405,1750697444749,-460.0,0.00020547,2]
[367191406,1750697444758,-399.48438045,0.00020547,2]
[367191407,1750697444767,-460.0,0.00020547,2]
[367191408,1750697444777,-485.2,0.00020547,2]
[367191409,1750697444786,-460.0,0.00020547,2]
[367191410,1750697444796,-460.18,0.00020547,2]
[367191411,1750697444807,-460.0,0.00020547,2]
[367191412,1750697444817,-460.0,0.00020547,2]
[367191413,1750697444827,-460.0,0.00020547,2]
[367191414,1750697444837,-340.05117822,0.00020547,2]
[367191415,1750697444852,-644.42,0.00020547,2]
[367191416,1750697444861,-380.55223813,0.00020547,2]
[367191417,1750697444871,-460.0,0.00020547,2]
[367191418,1750697444880,-460.0,0.00020547,2]
[367191419,1750697444889,-460.0,0.00020547,2]
[367191420,1750697444899,-1098.44,0.00020547,2]
[367191421,1750697444908,-463.58991103,0.00020547,2]
[367191422,1750697444918,-460.0,0.00020547,2]
[367191423,1750697444927,-500.0,0.00020547,2]
[367191424,1750697444937,-749.34,0.00020547,2]
[367191425,1750697444946,-460.0,0.00020547,2]
[367191426,1750697444956,-460.0,0.00020547,2]
[367191427,1750697444965,-500.0,0.00020573,2]
[367191428,1750697444975,-288.46718535,0.00020573,2]
[367191429,1750697444985,-500.0,0.00020573,2]
[367191430,1750697444995,-500.0,0.00020573,2]
[367191431,1750697445005,-500.0,0.00020573,2]
[367191432,1750697445014,-448.46180867,0.00020573,2]
[367191433,1750697445024,-500.0,0.00020573,2]
[367191434,1750697445035,-500.0,0.00020573,2]
[367191435,1750697445045,-539.97937142,0.00020573,2]
[367191436,1750697445055,-627.1042849,0.00020573,2]
[367191437,1750697445064,-203.45627109,0.00020573,2]
[367191438,1750697445074,-500.0,0.00020573,2]
[367191439,1750697445083,-500.0,0.00020573,2]
[367191440,1750697445093,-500.0,0.00020573,2]
[367191441,1750697445106,-581.9702967,0.00020573,2]
[367191442,1750697445115,-500.0,0.00020573,2]
[367191443,1750697445124,-500.0,0.00020573,2]
[367191444,1750697445134,-501.31662438,0.00020573,2]
[367191445,1750697445143,-500.0,0.00020573,2]
[367191446,1750697445152,-500.0,0.00020573,2]
[367191447,1750697445162,-500.0,0.00020573,2]
[367191448,1750697445171,-500.0,0.00020573,2]
[367191449,1750697445181,-355.19936786,0.00020573,2]
[367191450,1750697445193,-500.0,0.00020573,2]
[367191451,1750697445203,-353.0,0.00020622,2]
[367191452,1750697445213,-282.57148307,0.00020638,2]
[367191453,1750697445223,-3803.99525782,0.00020688,2]
[367191454,1750697445233,-805.9,0.00020706,2]
[367191455,1750697445242,-460.0,0.00020706,2]
[367191456,1750697445252,-460.0,0.00020706,2]
[367191457,1750697445261,-618.81,0.00020706,2]
[367191458,1750697445271,-473.78,0.00020706,2]
[367191459,1750697445280,-460.0,0.00020706,2]
[367191460,1750697445290,-664.37,0.00020706,2]
[367191461,1750697445300,-460.0,0.00020706,2]
[367191462,1750697445310,-618.48,0.00020706,2]
[367191463,1750697445319,-730.09,0.00020706,2]
[367191464,1750697445329,-924.89,0.00020706,2]
[367191465,1750697445338,-742.52,0.00020707,2]
[367191466,1750697445348,-460.0,0.00020707,2]
[367191467,1750697445358,-767.77,0.00020707,2]
[367191468,1750697445368,-406.715538,0.00020707,2]
[367191469,1750697445377,-460.0,0.00020707,2]
[367191470,1750697445388,-460.0,0.00020707,2]
[367191471,1750697445397,-460.0,0.00020707,2]
[367191472,1750697445407,-460.0,0.00020707,2]
[367191473,1750697445416,-460.0,0.00020707,2]
[367191474,1750697445426,-3331.18,0.00020707,2]
[367191475,1750697445436,-460.0,0.00020707,2]
[367191476,1750697445445,-597.17,0.00020707,2]
[367191477,1750697445455,-1808.96,0.00020707,2]
[367191478,1750697445465,-522.83,0.00020707,2]
[367191479,1750697445474,-993.39,0.00020707,2]
[367191480,1750697445483,-460.0,0.00020707,2]
[367191481,1750697445493,-460.0,0.00020707,2]
[367191482,1750697445502,-460.0,0.00020707,2]
[367191483,1750697445512,-460.0,0.00020707,2]
[367191484,1750697445522,-1938.6,0.00020707,2]
[367191485,1750697445532,-471.25772779,0.00020707,2]
[367191486,1750697445542,-4171.75,0.00020707,2]
[367191487,1750697445552,-460.0,0.00020707,2]
[367191488,1750697445562,-798.39,0.00020707,2]
[367191489,1750697445572,-662.12,0.00020707,2]
[367191490,1750697445582,-644.67,0.00020707,2]
[367191491,1750697445591,-1922.25,0.00020707,2]
[367191492,1750697445602,-500.56,0.00020707,2]